[Event "2nd Goa GM Open 2019"]
[Site "Goa"]
[Date "2019.06.23"]
[Round "8.23"]
[White "Abhishek, Kelkar"]
[Black "Neverov, Valeriy"]
[Result "0-1"]
[ECO "A46"]
[WhiteElo "2323"]
[BlackElo "2470"]
[Annotator "ChessBase"]
[PlyCount "120"]
[EventDate "2019.06.17"]
[EventType "swiss"]
[EventCountry "IND"]
[SourceTitle "playchess.com"]
[Source "ChessBase"]
[SourceQuality "1"]
[TimeControl "5400+30"]

1. d4 {[%emt 0:09:41]} Nf6 {[%emt 0:00:00]} 2. Nf3 {[%emt 0:00:53]} e6 {[%emt 0:00:09]} 3. Bf4 {[%emt 0:01:04]} b6 {[%emt 0:00:46]} 4. e3 {[%emt 0:00:40]} Bb7 {[%emt 0:00:38]} 5. Be2 {[%emt 0:00:17]} Be7 {[%emt 0:02:23]} 6. h3 {[%emt 0:00:12]} O-O {[%emt 0:00:59]} 7. O-O {[%emt 0:00:12]} c5 {[%emt 0:05:10]} 8. c3 {[%emt 0:00:15]} Nc6 {[%emt 0:02:53]} 9. Nbd2 {[%emt 0:00:48]} Rc8 {[%emt 0:02:13]} 10. a4 {[%emt 0:06:26]} d5 {[%emt 0:22:56]} 11. Ne5 {[%emt 0:00:45]} Ne8 {[%emt 0:06:23]} 12. Nxc6 {[%emt 0:00:56]} Bxc6 {[%emt 0:00:02]} 13. Ba6 {[%emt 0:00:18]} Ra8 {[%emt 0:00:02]} 14. Nf3 {[%emt 0:00:27]} Nd6 {[%emt 0:01:03]} 15. Ne5 {[%emt 0:01:32]} Be8 {[%emt 0:00:29]} 16. Qg4 {[%emt 0:07:04]} Kh8 {[%emt 0:05:26]} 17. b3 {[%emt 0:12:41]} Ne4 {[%emt 0:24:08]} 18. Rfc1 {[%emt 0:12:41]} f6 {[%emt 0:01:40]} 19. Nd3 {[%emt 0:00:18]} Bd7 {[%emt 0:00:17]} 20. Qe2 {[%emt 0:01:01]} Bc8 {[%emt 0:00:11]} 21. Bxc8 {[%emt 0:06:41]} Rxc8 {[%emt 0:00:02]} 22. f3 {[%emt 0:00:12]} Nd6 {[%emt 0:00:25]} 23. dxc5 {[%emt 0:04:04]} bxc5 {[%emt 0:00:17]} 24. c4 {[%emt 0:00:04]} e5 {[%emt 0:01:54]} 25. Bg3 {[%emt 0:00:12]} d4 {[%emt 0:01:40]} 26. e4 {[%emt 0:00:39]} Nf7 {[%emt 0:01:17]} 27. a5 {[%emt 0:01:01]} Rb8 {[%emt 0:01:13]} 28. Qa2 {[%emt 0:00:06]} Qc7 {[%emt 0:02:39]} 29. Rab1 {[%emt 0:00:33]} Rb7 {[%emt 0:01:38]} 30. b4 {[%emt 0:01:31]} cxb4 {[%emt 0:01:33]} 31. c5 {[%emt 0:00:17]} Rb5 {[%emt 0:04:27]} 32. Rxb4 {[%emt 0:07:40]} Rxa5 {[%emt 0:00:08]} 33. Ra4 {[%emt 0:02:33]} Rxa4 {[%emt 0:06:12]} 34. Qxa4 {[%emt 0:00:06]} Rc8 {[%emt 0:00:24]} 35. Nb4 {[%emt 0:16:18]} Bf8 {[%emt 0:00:07]} 36. Nd5 {[%emt 0:03:01]} Qc6 {[%emt 0:01:05]} 37. Qxc6 {[%emt 0:00:52]} Rxc6 {[%emt 0:00:06]} 38. Rb1 {[%emt 0:00:03]} g5 {[%emt 0:03:49]} 39. Rb7 {[%emt 0:02:37]} Kg7 {[%emt 0:00:23]} 40. Rxa7 {[%emt 0:00:39]} Bxc5 {[%emt 0:00:46]} 41. Rd7 {[%emt 0:00:05]} d3+ {[%emt 0:01:19]} 42. Kf1 {[%emt 0:01:01]} Ra6 {[%emt 0:00:56]} 43. Ke1 {[%emt 0:01:29]} Ra2 {[%emt 0:00:18]} 44. Kd1 {[%emt 0:00:04]} Rxg2 {[%emt 0:00:34]} 45. Be1 {[%emt 0:00:02]} Ra2 {[%emt 0:00:57]} 46. h4 {[%emt 0:01:01]} h5 {[%emt 0:00:24]} 47. hxg5 {[%emt 0:00:58]} fxg5 {[%emt 0:00:02]} 48. Bc3 {[%emt 0:00:17]} Kg6 {[%emt 0:00:55]} 49. Rc7 {[%emt 0:00:02]} Bd4 {[%emt 0:00:34]} 50. Rc6+ {[%emt 0:01:13]} Kg7 {[%emt 0:00:28]} 51. Bxd4 {[%emt 0:01:18]} exd4 {[%emt 0:00:03]} 52. Ne7 {[%emt 0:00:39]} Ne5 {[%emt 0:00:32]} 53. Nf5+ {[%emt 0:00:03]} Kf7 {[%emt 0:00:51]} 54. Rc7+ {[%emt 0:00:04]} Ke6 {[%emt 0:00:39]} 55. Ng7+ {[%emt 0:00:28]} Kf6 {[%emt 0:00:26]} 56. Nxh5+ {[%emt 0:00:16]} Kg6 {[%emt 0:00:10]} 57. Ng3 {[%emt 0:00:28]} Nxf3 {[%emt 0:00:13]} 58. Nf5 {[%emt 0:00:19]} Ra1+ {[%emt 0:00:38]} 59. Rc1 {[%emt 0:00:06]} Rxc1+ {[%emt 0:00:05]} 60. Kxc1 {[%emt 0:00:04]} Kf6 {[%emt 0:00:11]} 0-1

[Event "2nd Goa GM Open 2019"]
[Site "Goa"]
[Date "2019.06.23"]
[Round "8.24"]
[White "Rathanvel, V S"]
[Black "Lugovskoy, Maxim"]
[Result "1/2-1/2"]
[ECO "C11"]
[WhiteElo "2314"]
[BlackElo "2451"]
[Annotator "ChessBase"]
[PlyCount "109"]
[EventDate "2019.06.17"]
[EventType "swiss"]
[EventCountry "IND"]
[SourceTitle "playchess.com"]
[Source "ChessBase"]
[SourceQuality "1"]
[TimeControl "5400+30"]

1. e4 {[%emt 0:00:00]} e6 {[%emt 0:00:21]} 2. d4 {[%emt 0:00:00]} d5 {[%emt 0:00:04]} 3. Nc3 {[%emt 0:00:00]} Nf6 {[%emt 0:00:13]} 4. e5 {[%emt 0:00:00]} Nfd7 {[%emt 0:00:05]} 5. f4 {[%emt 0:00:05]} c5 {[%emt 0:00:03]} 6. Nf3 {[%emt 0:00:08]} Be7 {[%emt 0:00:07]} 7. Be3 {[%emt 0:00:07]} b6 {[%emt 0:00:04]} 8. Qd2 {[%emt 0:00:08]} O-O {[%emt 0:00:35]} 9. Be2 {[%emt 0:03:17]} Ba6 {[%emt 0:01:26]} 10. O-O {[%emt 0:04:29]} Bxe2 {[%emt 0:00:04]} 11. Nxe2 {[%emt 0:00:35]} Nc6 {[%emt 0:00:03]} 12. Rad1 {[%emt 0:11:52]} Rc8 {[%emt 0:05:21]} 13. c3 {[%emt 0:08:12]} b5 {[%emt 0:00:47]} 14. g4 {[%emt 0:19:27]} b4 {[%emt 0:04:47]} 15. f5 {[%emt 0:07:44]} bxc3 {[%emt 0:00:48]} 16. bxc3 {[%emt 0:00:08]} cxd4 {[%emt 0:08:42]} 17. cxd4 {[%emt 0:00:11]} Qa5 {[%emt 0:09:28]} 18. Nf4 {[%emt 0:04:01]} Qxd2 {[%emt 0:10:19]} 19. Rxd2 {[%emt 0:07:15]} Rfe8 {[%emt 0:02:32]} 20. Rb2 {[%emt 0:08:32]} Na5 {[%emt 0:11:21]} 21. Bd2 {[%emt 0:01:19]} Ba3 {[%emt 0:05:33]} 22. Rb5 {[%emt 0:00:50]} Nc4 {[%emt 0:01:19]} 23. Rb7 {[%emt 0:00:01]} Nb8 {[%emt 0:01:24]} 24. Rfb1 {[%emt 0:06:18]} Nc6 {[%emt 0:04:34]} 25. fxe6 {[%emt 0:09:32]} fxe6 {[%emt 0:00:10]} 26. Nh5 {[%emt 0:00:07]} Re7 {[%emt 0:03:28]} 27. Bg5 {[%emt 0:00:58]} Rec7 {[%emt 0:00:08]} 28. Nf4 {[%emt 0:01:33]} Kf7 {[%emt 0:02:44]} 29. Bh4 {[%emt 0:00:06]} Be7 {[%emt 0:00:16]} 30. Bxe7 {[%emt 0:00:18]} Kxe7 {[%emt 0:00:05]} 31. Kf2 {[%emt 0:02:15]} a5 {[%emt 0:00:31]} 32. Nd3 {[%emt 0:00:18]} Nd8 {[%emt 0:06:32]} 33. Rxc7+ {[%emt 0:01:15]} Rxc7 {[%emt 0:00:01]} 34. Nc5 {[%emt 0:00:37]} Nc6 {[%emt 0:00:21]} 35. Rb5 {[%emt 0:03:19]} Nd8 {[%emt 0:03:10]} 36. Ke2 {[%emt 0:00:25]} Nc6 {[%emt 0:01:10]} 37. Nd3 {[%emt 0:02:00]} Na3 {[%emt 0:00:42]} 38. Rc5 {[%emt 0:00:25]} h6 {[%emt 0:00:48]} 39. Kd1 {[%emt 0:00:23]} Nc4 {[%emt 0:00:07]} 40. h3 {[%emt 0:00:25]} Kd8 {[%emt 0:00:41]} 41. Nf4 {[%emt 0:00:50]} Kd7 {[%emt 0:00:05]} 42. Nd3 {[%emt 0:00:14]} Rc8 {[%emt 0:01:46]} 43. Rb5 {[%emt 0:01:10]} Rf8 {[%emt 0:00:01]} 44. Nc5+ {[%emt 0:00:32]} Kc8 {[%emt 0:00:00]} 45. Rb3 {[%emt 0:00:19]} a4 {[%emt 0:01:11]} 46. Nxa4 {[%emt 0:00:36]} Rf4 {[%emt 0:01:38]} 47. Nc5 {[%emt 0:00:38]} Nxd4 {[%emt 0:00:31]} 48. Nxd4 {[%emt 0:00:09]} Rxd4+ {[%emt 0:00:02]} 49. Kc1 {[%emt 0:00:19]} Nxe5 {[%emt 0:01:35]} 50. Nxe6 {[%emt 0:00:02]} Rc4+ {[%emt 0:00:42]} 51. Kd2 {[%emt 0:00:25]} g5 {[%emt 0:00:44]} 52. Re3 {[%emt 0:00:49]} Ng6 {[%emt 0:01:31]} 53. Rc3 {[%emt 0:00:27]} Kd7 {[%emt 0:00:17]} 54. Rxc4 {[%emt 0:00:04]} dxc4 {[%emt 0:00:03]} 55. Nd4 {[%emt 0:00:26]} 1/2-1/2

[Event "2nd Goa GM Open 2019"]
[Site "Goa"]
[Date "2019.06.23"]
[Round "8.26"]
[White "Vantika Agrawal"]
[Black "Mohammad Nubairshah Shaikh"]
[Result "0-1"]
[ECO "D11"]
[WhiteElo "2223"]
[BlackElo "2436"]
[Annotator "NA"]
[PlyCount "197"]
[EventDate "2019.06.17"]
[EventType "swiss"]
[EventCountry "IND"]
[SourceTitle "playchess.com"]
[Source "ChessBase"]
[SourceQuality "1"]
[TimeControl "5400+30"]

1. d4 {[%emt 0:00:00]} d5 {[%emt 0:00:27]} 2. c4 {[%emt 0:00:00]} c6 {[%emt 0:00:01]} 3. Nf3 {[%emt 0:00:00]} Nf6 {[%emt 0:00:01]} 4. e3 {[%emt 0:00:04]} Bg4 {[%emt 0:00:03]} 5. h3 {[%emt 0:00:43]} Bh5 {[%emt 0:00:02]} 6. g4 {[%emt 0:00:16]} Bg6 {[%emt 0:00:05]} 7. Ne5 {[%emt 0:00:22]} Nbd7 {[%emt 0:02:07]} 8. Nxg6 {[%emt 0:16:37]} hxg6 {[%emt 0:00:02]} 9. Bg2 {[%emt 0:01:36]} dxc4 {[%emt 0:12:29]} 10. Nd2 {[%emt 0:09:26]} e5 {[%emt 0:11:11]} 11. Nxc4 {[%emt 0:08:37]} Bb4+ {[%emt 0:01:17]} 12. Bd2 {[%emt 0:01:33]} Qe7 {[%emt 0:00:02]} 13. a3 {[%emt 0:09:02]} Bxd2+ {[%emt 0:00:53]} 14. Qxd2 {[%emt 0:00:12]} Rd8 {[%emt 0:05:05]} 15. O-O-O {[%emt 0:03:03]} O-O {[%emt 0:04:21]} 16. dxe5 {[%emt 0:16:01]} Nxe5 {[%emt 0:00:20]} 17. Qc3 {[%emt 0:00:32]} Nxc4 {[%emt 0:05:37]} 18. Qxc4 {[%emt 0:01:42]} Qe5 {[%emt 0:00:22]} 19. Qc2 {[%emt 0:01:52]} g5 {[%emt 0:03:19]} 20. Rxd8 {[%emt 0:05:31]} Rxd8 {[%emt 0:00:33]} 21. Rd1 {[%emt 0:00:17]} Rd6 {[%emt 0:07:47]} 22. Rxd6 {[%emt 0:01:04]} Qxd6 {[%emt 0:00:02]} 23. Qd1 {[%emt 0:00:53]} Qh2 {[%emt 0:01:26]} 24. Qh1 {[%emt 0:00:45]} Qd6 {[%emt 0:01:46]} 25. Qd1 {[%emt 0:00:13]} Qh2 {[%emt 0:00:02]} 26. Qh1 {[%emt 0:00:07]} Qe5 {[%emt 0:00:02]} 27. Qd1 {[%emt 0:00:41]} g6 28. Qd4 {[%emt 0:08:25]} Qxd4 {[%emt 0:01:16]} 29. exd4 {[%emt 0:01:26]} Kf8 {[%emt 0:11:43]} 30. Kd2 {[%emt 0:00:05]} Ke7 {[%emt 0:00:05]} 31. Ke3 {[%emt 0:00:05]} Ne8 {[%emt 0:00:05]} 32. f4 {[%emt 0:06:25]} Kf6 {[%emt 0:00:03]} 33. Bf1 {[%emt 0:03:02]} Nd6 {[%emt 0:25:11]} 34. Be2 {[%emt 0:01:46]} a5 {[%emt 0:00:33]} 35. b3 {[%emt 0:00:43]} Ne8 {[%emt 0:03:10]} 36. Bc4 {[%emt 0:01:05]} gxf4+ {[%emt 0:01:59]} 37. Kxf4 {[%emt 0:00:04]} g5+ {[%emt 0:00:03]} 38. Ke4 {[%emt 0:02:12]} Nd6+ {[%emt 0:00:19]} 39. Ke3 {[%emt 0:00:53]} a4 {[%emt 0:00:01]} 40. Kd2 {[%emt 0:01:56]} axb3 {[%emt 0:03:50]} 41. Bxb3 {[%emt 0:00:29]} Nb5 {[%emt 0:00:01]} 42. d5 {[%emt 0:00:32]} c5 {[%emt 0:01:21]} 43. a4 {[%emt 0:00:23]} Nd6 {[%emt 0:00:01]} 44. Kd3 {[%emt 0:00:45]} b6 {[%emt 0:00:20]} 45. Bd1 {[%emt 0:00:31]} Ke5 {[%emt 0:00:01]} 46. Bf3 {[%emt 0:00:29]} Kf4 {[%emt 0:00:01]} 47. Bg2 {[%emt 0:00:33]} Kg3 {[%emt 0:00:07]} 48. Be4 {[%emt 0:00:26]} Kxh3 {[%emt 0:00:37]} 49. Bf5 {[%emt 0:00:17]} Kg2 {[%emt 0:03:19]} 50. Ke2 {[%emt 0:00:28]} Nc4 {[%emt 0:00:15]} 51. Kd3 {[%emt 0:00:46]} Nd6 {[%emt 0:00:16]} 52. Ke2 {[%emt 0:00:05]} f6 {[%emt 0:00:01]} 53. Be6 {[%emt 0:00:36]} c4 {[%emt 0:01:25]} 54. Bf5 {[%emt 0:00:35]} Kg3 {[%emt 0:00:15]} 55. Ke3 {[%emt 0:00:12]} c3 {[%emt 0:00:56]} 56. Kd3 {[%emt 0:00:39]} Kf4 {[%emt 0:00:03]} 57. Be6 {[%emt 0:00:28]} Ne4 {[%emt 0:01:01]} 58. Bf5 {[%emt 0:00:25]} Nc5+ {[%emt 0:00:33]} 59. Kxc3 {[%emt 0:00:12]} Ke5 {[%emt 0:00:05]} 60. Kb4 {[%emt 0:00:41]} Kxd5 {[%emt 0:00:07]} 61. Kb5 {[%emt 0:00:21]} Kd6 {[%emt 0:00:19]} 62. Bc2 {[%emt 0:00:32]} Nd7 {[%emt 0:01:31]} 63. Bf5 {[%emt 0:00:05]} Nc5 {[%emt 0:00:08]} 64. Bc2 {[%emt 0:00:04]} Nd7 {[%emt 0:00:51]} 65. Bf5 {[%emt 0:00:10]} Kc7 {[%emt 0:00:17]} 66. Bxd7 {[%emt 0:01:39]} Kxd7 {[%emt 0:00:01]} 67. Kxb6 {[%emt 0:00:07]} f5 {[%emt 0:00:01]} 68. a5 {[%emt 0:01:01]} fxg4 {[%emt 0:00:01]} 69. a6 {[%emt 0:00:04]} g3 {[%emt 0:00:01]} 70. a7 {[%emt 0:00:04]} g2 {[%emt 0:00:01]} 71. a8=Q {[%emt 0:00:06]} g1=Q+ {[%emt 0:00:01]} 72. Kb5 {[%emt 0:00:15]} Qf1+ {[%emt 0:00:35]} 73. Kb6 {[%emt 0:01:20]} Qf2+ {[%emt 0:00:40]} 74. Kb5 {[%emt 0:00:17]} Qe2+ {[%emt 0:00:19]} 75. Kb6 {[%emt 0:00:51]} Qb2+ {[%emt 0:02:41]} 76. Kc5 {[%emt 0:00:08]} Qc3+ {[%emt 0:00:02]} 77. Kb5 {[%emt 0:00:15]} Ke6 {[%emt 0:01:51]} 78. Qe8+ {[%emt 0:00:33]} Kf5 {[%emt 0:00:05]} 79. Kb6 {[%emt 0:01:07]} Qd4+ {[%emt 0:00:47]} 80. Ka6 {[%emt 0:00:42]} Qd3+ {[%emt 0:00:37]} 81. Ka7 {[%emt 0:00:48]} Qd4+ {[%emt 0:00:08]} 82. Ka6 {[%emt 0:00:15]} g4 {[%emt 0:00:49]} 83. Qb5+ {[%emt 0:00:33]} Kf4 {[%emt 0:00:31]} 84. Qf1+ {[%emt 0:00:31]} Kg5 {[%emt 0:00:07]} 85. Qc1+ {[%emt 0:00:47]} Kh4 {[%emt 0:00:37]} 86. Qh1+ {[%emt 0:00:21]} Kg3 {[%emt 0:00:10]} 87. Qe1+ {[%emt 0:00:21]} Qf2 {[%emt 0:00:15]} 88. Qe5+ {[%emt 0:00:23]} Qf4 {[%emt 0:00:11]} 89. Qe1+ {[%emt 0:00:21]} Kg2 {[%emt 0:00:02]} 90. Qe2+ {[%emt 0:00:18]} Kg1 {[%emt 0:00:12]} 91. Qe6 {[%emt 0:01:50]} g3 {[%emt 0:00:11]} 92. Kb7 {[%emt 0:00:28]} g2 {[%emt 0:00:35]} 93. Qe1+ {[%emt 0:00:26]} Kh2 {[%emt 0:00:18]} 94. Qe2 {[%emt 0:00:14]} Qf7+ {[%emt 0:02:50]} 95. Ka8 {[%emt 0:00:30]} Qd5+ {[%emt 0:00:08]} 96. Kb8 {[%emt 0:00:50]} Kh1 {[%emt 0:00:05]} 97. Qe3 {[%emt 0:00:33]} g1=Q 98. Qh3+ {[%emt 0:00:31]} Qh2+ {[%emt 0:00:35]} 99. Ka7 {[%emt 0:01:01]} 0-1

[Event "2nd Goa GM Open 2019"]
[Site "Goa"]
[Date "2019.06.23"]
[Round "8.27"]
[White "Konguvel, Ponnuswamy"]
[Black "Sammed Jaykumar, Shete"]
[Result "1-0"]
[ECO "C88"]
[WhiteElo "2293"]
[BlackElo "2431"]
[Annotator "NA"]
[PlyCount "67"]
[EventDate "2019.06.17"]
[EventType "swiss"]
[EventCountry "IND"]
[SourceTitle "playchess.com"]
[Source "ChessBase"]
[SourceQuality "1"]
[TimeControl "5400+30"]

1. e4 {[%emt 0:00:00]} e5 {[%emt 0:00:00]} 2. Nf3 {[%emt 0:00:00]} Nc6 {[%emt 0:00:00]} 3. Bb5 {[%emt 0:00:17]} a6 {[%emt 0:00:00]} 4. Ba4 {[%emt 0:00:05]} Nf6 {[%emt 0:00:00]} 5. O-O {[%emt 0:00:15]} Be7 {[%emt 0:00:00]} 6. Re1 {[%emt 0:00:36]} b5 {[%emt 0:00:01]} 7. Bb3 {[%emt 0:00:04]} O-O {[%emt 0:00:05]} 8. a4 {[%emt 0:00:34]} b4 {[%emt 0:00:07]} 9. d3 {[%emt 0:01:10]} d6 {[%emt 0:00:07]} 10. a5 {[%emt 0:00:19]} Be6 {[%emt 0:01:05]} 11. Bxe6 {[%emt 0:03:36]} fxe6 {[%emt 0:00:10]} 12. Nbd2 {[%emt 0:00:05]} Qe8 {[%emt 0:06:24]} 13. c3 {[%emt 0:22:36]} Rb8 {[%emt 0:01:30]} 14. d4 {[%emt 0:11:15]} bxc3 {[%emt 0:05:52]} 15. bxc3 {[%emt 0:00:01]} exd4 {[%emt 0:00:56]} 16. cxd4 {[%emt 0:00:25]} Qd7 {[%emt 0:04:51]} 17. Nc4 {[%emt 0:04:45]} Rb5 {[%emt 0:02:55]} 18. Bd2 {[%emt 0:01:06]} d5 {[%emt 0:02:49]} 19. exd5 {[%emt 0:08:57]} exd5 {[%emt 0:05:02]} 20. Nce5 {[%emt 0:00:18]} Nxe5 {[%emt 0:00:08]} 21. Nxe5 {[%emt 0:01:45]} Qf5 {[%emt 0:02:18]} 22. g4 {[%emt 0:08:08]} Qc8 {[%emt 0:03:34]} 23. Nc6 {[%emt 0:01:15]} Bd6 {[%emt 0:04:44]} 24. Na7 {[%emt 0:01:12]} Qd8 {[%emt 0:11:10]} 25. Nxb5 {[%emt 0:00:32]} Bxh2+ {[%emt 0:23:05]} 26. Kg2 {[%emt 0:00:58]} axb5 {[%emt 0:02:51]} 27. Bg5 {[%emt 0:04:17]} Bd6 {[%emt 0:05:54]} 28. Qe2 {[%emt 0:03:54]} h6 {[%emt 0:03:08]} 29. Qe6+ {[%emt 0:10:25]} Kh7 {[%emt 0:00:21]} 30. Bh4 {[%emt 0:00:38]} Qa8 {[%emt 0:01:35]} 31. g5 {[%emt 0:01:49]} hxg5 {[%emt 0:04:20]} 32. Bxg5 {[%emt 0:00:28]} b4 {[%emt 0:00:33]} 33. f4 {[%emt 0:06:27]} Kg6 {[%emt 0:01:40]} 34. Kf3 {[%emt 0:02:38]} 1-0

[Event "2nd Goa GM Open 2019"]
[Site "Goa"]
[Date "2019.06.23"]
[Round "8.28"]
[White "Kushagra Mohan"]
[Black "Manik, Mikulas"]
[Result "1/2-1/2"]
[ECO "B90"]
[WhiteElo "2207"]
[BlackElo "2399"]
[Annotator "NA"]
[PlyCount "64"]
[EventDate "2019.06.17"]
[EventType "swiss"]
[EventCountry "IND"]
[SourceTitle "playchess.com"]
[Source "ChessBase"]
[SourceQuality "1"]
[TimeControl "5400+30"]

1. e4 {[%emt 0:00:00]} c5 {[%emt 0:00:00]} 2. Nf3 {[%emt 0:00:00]} d6 {[%emt 0:00:00]} 3. d4 {[%emt 0:00:00]} cxd4 {[%emt 0:00:00]} 4. Nxd4 {[%emt 0:00:00]} Nf6 {[%emt 0:00:00]} 5. Nc3 {[%emt 0:00:00]} a6 {[%emt 0:00:00]} 6. h3 {[%emt 0:00:00]} e6 {[%emt 0:00:22]} 7. g4 {[%emt 0:00:07]} h6 {[%emt 0:00:02]} 8. Bg2 {[%emt 0:00:12]} g5 {[%emt 0:00:07]} 9. Qe2 {[%emt 0:00:24]} Nbd7 {[%emt 0:01:27]} 10. Rf1 {[%emt 0:00:15]} Be7 {[%emt 0:06:07]} 11. Be3 {[%emt 0:00:27]} Qc7 {[%emt 0:01:50]} 12. O-O-O {[%emt 0:00:29]} Rb8 {[%emt 0:08:16]} 13. Nb3 {[%emt 0:19:51]} b5 {[%emt 0:04:36]} 14. a3 {[%emt 0:02:22]} e5 {[%emt 0:21:12]} 15. Kb1 {[%emt 0:04:49]} b4 {[%emt 0:14:13]} 16. axb4 {[%emt 0:00:45]} Rxb4 {[%emt 0:00:02]} 17. Nd5 {[%emt 0:04:48]} Nxd5 {[%emt 0:00:19]} 18. exd5 {[%emt 0:01:43]} Nf6 {[%emt 0:03:35]} 19. Bd2 {[%emt 0:04:22]} Ra4 {[%emt 0:06:40]} 20. Bc3 {[%emt 0:05:48]} Bd7 {[%emt 0:03:24]} 21. Rfe1 {[%emt 0:05:23]} O-O {[%emt 0:02:40]} 22. Qd2 {[%emt 0:05:35]} Rc8 {[%emt 0:04:54]} 23. f3 {[%emt 0:10:01]} Rf4 {[%emt 0:07:16]} 24. Re3 {[%emt 0:03:59]} Bf8 {[%emt 0:02:59]} 25. Bf1 {[%emt 0:04:02]} Bb5 {[%emt 0:02:55]} 26. Nc1 {[%emt 0:00:52]} Bxf1 {[%emt 0:01:13]} 27. Rxf1 {[%emt 0:00:30]} Qb7 {[%emt 0:00:31]} 28. Rd3 {[%emt 0:09:48]} Ne4 29. fxe4 {[%emt 0:01:53]} Rxf1 {[%emt 0:02:05]} 30. Qg2 {[%emt 0:00:37]} Rf6 {[%emt 0:01:42]} 31. Ne2 {[%emt 0:01:21]} Qb6 {[%emt 0:02:13]} 32. Be1 {[%emt 0:00:33]} a5 {[%emt 0:01:52]} 1/2-1/2

[Event "2nd Goa GM Open 2019"]
[Site "Goa"]
[Date "2019.06.23"]
[Round "8.29"]
[White "Mahindrakar Indrajeet"]
[Black "Nitin, S.."]
[Result "*"]
[ECO "B21"]
[WhiteElo "2100"]
[BlackElo "2398"]
[Annotator "NA RC"]
[PlyCount "117"]
[EventDate "2019.06.17"]
[EventType "swiss"]
[EventCountry "IND"]
[SourceTitle "playchess.com"]
[Source "ChessBase"]
[SourceQuality "1"]
[TimeControl "5400+30"]

1. e4 c5 {[%emt 0:00:05]} 2. d4 {[%emt 0:01:09]} cxd4 {[%emt 0:00:09]} 3. c3 d3 {[%emt 0:00:44]} 4. Bxd3 {[%emt 0:00:29]} d6 {[%emt 0:02:41]} 5. Nf3 {[%emt 0:04:37]} Nd7 {[%emt 0:00:30]} 6. Be3 Ngf6 7. h3 {[%emt 0:04:30]} a6 {[%emt 0:07:30]} 8. O-O {[%emt 0:02:48]} e6 {[%emt 0:00:26]} 9. c4 {[%emt 0:04:23]} b6 {[%emt 0:00:30]} 10. Nc3 {[%emt 0:00:30]} Bb7 {[%emt 0:00:30]} 11. Rc1 {[%emt 0:00:30]} Rc8 {[%emt 0:02:41]} 12. Re1 {[%emt 0:13:23]} Be7 {[%emt 0:00:30]} 13. b3 {[%emt 0:04:04]} Qc7 {[%emt 0:01:03]} 14. Bb1 {[%emt 0:03:13]} Qb8 {[%emt 0:00:30]} 15. Bf4 {[%emt 0:10:42]} O-O 16. Qd2 {[%emt 0:00:30]} Rfd8 {[%emt 0:02:23]} 17. Qe3 {[%emt 0:01:22]} Qa8 {[%emt 0:03:06]} 18. Rcd1 {[%emt 0:00:30]} Ne8 {[%emt 0:10:11]} 19. Nh2 Rc5 {[%emt 0:08:02]} 20. Na4 {[%emt 0:28:27]} Rc6 {[%emt 0:00:13]} 21. Nc3 {[%emt 0:01:01]} Ne5 {[%emt 0:00:53]} 22. Nf3 {[%emt 0:01:52]} Ng6 {[%emt 0:01:00]} 23. Bg3 {[%emt 0:00:30]} Nf6 {[%emt 0:02:20]} 24. a4 Nd7 {[%emt 0:02:35]} 25. Nd5 {[%emt 0:04:53]} Bf8 {[%emt 0:02:37]} 26. Nb4 {[%emt 0:00:34]} Rcc8 {[%emt 0:01:11]} 27. Bxd6 {[%emt 0:00:54]} Nc5 {[%emt 0:00:05]} 28. Bxf8 {[%emt 0:04:07]} Rxf8 {[%emt 0:00:09]} 29. Na2 {[%emt 0:00:30]} f5 {[%emt 0:00:30]} 30. Nd4 {[%emt 0:03:51]} f4 {[%emt 0:01:11]} 31. Qc3 {[%emt 0:01:00]} e5 32. Nf3 {[%emt 0:03:10]} Rce8 {[%emt 0:03:04]} 33. Qc2 {[%emt 0:00:25]} Ne6 {[%emt 0:01:29]} 34. Nc3 {[%emt 0:01:08]} Nd4 {[%emt 0:00:05]} 35. Nxd4 {[%emt 0:01:05]} exd4 {[%emt 0:00:02]} 36. Nd5 {[%emt 0:00:32]} f3 {[%emt 0:00:22]} 37. g3 {[%emt 0:00:40]} Qc8 {[%emt 0:01:34]} 38. Kh2 {[%emt 0:00:30]} Re5 {[%emt 0:00:01]} 39. Qd3 {[%emt 0:00:38]} Qe6 {[%emt 0:04:27]} 40. Qf1 {[%emt 0:00:29]} Bc8 {[%emt 0:00:15]} 41. Rxd4 {[%emt 0:01:00]} Rh5 {[%emt 0:00:19]} 42. e5 {[%emt 0:00:22]} Rxh3+ {[%emt 0:01:22]} 43. Kg1 {[%emt 0:00:01]} Nxe5 {[%emt 0:00:13]} 44. Nf4 {[%emt 0:00:57]} Rxf4 {[%emt 0:04:25]} 45. Rxf4 {[%emt 0:00:00]} Qh6 {[%emt 0:00:00]} 46. Rh4 {[%emt 0:00:21]} Rxh4 {[%emt 0:00:18]} 47. gxh4 {[%emt 0:00:30]} Qxh4 {[%emt 0:02:30]} 48. Rxe5 {[%emt 0:00:24]} Bh3 {[%emt 0:00:15]} 49. Bxh7+ {[%emt 0:01:22]} Qxh7 {[%emt 0:00:30]} 50. Qc1 {[%emt 0:00:30]} Bg2 {[%emt 0:00:30]} 51. Re8+ {[%emt 0:00:30]} Kf7 {[%emt 0:00:30]} 52. Rh8 {[%emt 0:00:30]} Qxh8 {[%emt 0:00:30]} 53. Qf4+ {[%emt 0:00:30]} Ke6 {[%emt 0:00:30]} 54. Qe4+ {[%emt 0:00:30]} Kd6 {[%emt 0:00:30]} 55. Qd5+ {[%emt 0:00:30]} Kc7 {[%emt 0:00:30]} 56. Qe5+ {[%emt 0:00:30]} Kb7 {[%emt 0:00:30]} 57. Qd5+ {[%emt 0:00:30]} Ka7 {[%emt 0:00:30]} 58. Qd7+ {[%emt 0:00:30]} Kb8 {[%emt 0:00:30]} 59. Qd6+ {[%emt 0:00:30]} *